[Event "NJSK 2022 Meisjes C"]
[Site "Almelo, Netherlands"]
[Date "2022.05.05"]
[Round "5.6"]
[White "Yildirim, Azra"]
[Black "Tunyluhulima, Serana"]
[Result "0-1"]
[TimeControl "90min/40moves + 30min + 30sec/move"]
[WhiteElo "985"]
[BlackElo "1617"]

1. e4 {[%clk 01:30:57]} {[%emt 00:00:03]} e5 {[%clk 01:30:53]} {[%emt
00:00:07]} 2. Nf3 {[%clk 01:29:50]} {[%emt 00:01:37]} Nc6 {[%clk 01:31:03]}
{[%emt 00:00:21]} 3. Bb5 {[%clk 01:29:19]} {[%emt 00:01:01]} d6 {[%clk
01:30:20]} {[%emt 00:01:12]} 4. d4 {[%clk 01:28:36]} {[%emt 00:01:13]} a6
{[%clk 01:28:05]} {[%emt 00:02:45]} 5. Bxc6+ {[%clk 01:28:22]} {[%emt
00:00:45]} bxc6 {[%clk 01:28:20]} {[%emt 00:00:14]} 6. h3 {[%clk 01:28:01]}
{[%emt 00:00:51]} Nf6 {[%clk 01:26:41]} {[%emt 00:02:09]} 7. Nc3 {[%clk
01:27:02]} {[%emt 00:01:28]} Be6 {[%clk 01:22:42]} {[%emt 00:04:29]} 8. O-O
{[%clk 01:23:29]} {[%emt 00:04:03]} exd4 {[%clk 01:18:37]} {[%emt 00:04:36]} 9.
Nxd4 {[%clk 01:21:09]} {[%emt 00:02:49]} c5 {[%clk 01:14:39]} {[%emt 00:04:29]}
10. Nxe6 {[%clk 01:20:07]} {[%emt 00:01:32]} fxe6 {[%clk 01:14:46]} {[%emt
00:00:23]} 11. Re1 {[%clk 01:14:21]} {[%emt 00:06:16]} e5 {[%clk 01:14:13]}
{[%emt 00:01:03]} 12. Nd5 {[%clk 01:12:24]} {[%emt 00:02:26]} Be7 {[%clk
01:13:32]} {[%emt 00:01:11]} 13. c3 {[%clk 01:11:09]} {[%emt 00:01:45]} O-O
{[%clk 01:12:28]} {[%emt 00:01:34]} 14. Qb3 {[%clk 01:05:41]} {[%emt 00:05:59]}
Nxd5 {[%clk 01:09:56]} {[%emt 00:03:01]} 15. Qxd5+ {[%clk 01:03:39]} {[%emt
00:02:32]} Kh8 {[%clk 01:10:09]} {[%emt 00:00:18]} 16. g3 {[%clk 01:03:08]}
{[%emt 00:01:01]} Qd7 {[%clk 01:08:56]} {[%emt 00:01:42]} 17. Kg2 {[%clk
01:01:47]} {[%emt 00:01:51]} c6 {[%clk 01:06:10]} {[%emt 00:03:17]} 18. Qd1
{[%clk 01:00:23]} {[%emt 00:01:53]} Rf7 {[%clk 01:00:09]} {[%emt 00:06:31]} 19.
h4 {[%clk 00:57:27]} {[%emt 00:03:27]} Raf8 {[%clk 00:59:58]} {[%emt 00:00:40]}
20. Rf1 {[%clk 00:53:16]} {[%emt 00:04:42]} d5 {[%clk 00:57:13]} {[%emt
00:03:15]} 21. exd5 {[%clk 00:51:06]} {[%emt 00:02:39]} cxd5 {[%clk 00:57:21]}
{[%emt 00:00:23]} 22. Bg5 {[%clk 00:49:42]} {[%emt 00:01:53]} d4 {[%clk
00:53:02]} {[%emt 00:04:50]} 23. Qe2 {[%clk 00:47:11]} {[%emt 00:03:01]} Qd5+
{[%clk 00:51:30]} {[%emt 00:02:02]} 24. Kh2 {[%clk 00:45:45]} {[%emt 00:01:55]}
Bxg5 {[%clk 00:47:44]} {[%emt 00:04:16]} 25. hxg5 {[%clk 00:45:56]} {[%emt
00:00:19]} Rf5 {[%clk 00:47:14]} {[%emt 00:01:01]} 26. f4 {[%clk 00:41:07]}
{[%emt 00:05:19]} exf4 {[%clk 00:46:14]} {[%emt 00:01:30]} 27. gxf4 {[%clk
00:40:37]} {[%emt 00:00:59]} dxc3 {[%clk 00:42:13]} {[%emt 00:04:31]} 28. bxc3
{[%clk 00:40:01]} {[%emt 00:01:07]} Qd6 {[%clk 00:40:13]} {[%emt 00:02:30]} 29.
Rad1 {[%clk 00:38:11]} {[%emt 00:02:19]} Qc7 {[%clk 00:38:48]} {[%emt
00:01:55]} 30. Qe4 {[%clk 00:34:44]} {[%emt 00:03:58]} Rxg5 {[%clk 00:34:52]}
{[%emt 00:04:25]} 31. Rde1 {[%clk 00:30:50]} {[%emt 00:04:24]} Rh5+ {[%clk
00:33:33]} {[%emt 00:01:49]} 32. Kg3 {[%clk 00:30:28]} {[%emt 00:00:53]} Qd7
{[%clk 00:32:39]} {[%emt 00:01:23]} 33. Rh1 {[%clk 00:29:38]} {[%emt 00:01:20]}
Rxh1 {[%clk 00:30:56]} {[%emt 00:02:13]} 34. Rxh1 {[%clk 00:29:18]} {[%emt
00:00:50]} h6 {[%clk 00:30:51]} {[%emt 00:00:36]} 35. Qe5 {[%clk 00:28:33]}
{[%emt 00:01:14]} Qd3+ {[%clk 00:29:27]} {[%emt 00:01:54]} 36. Kg4 {[%clk
00:28:20]} {[%emt 00:00:43]} Qg6+ {[%clk 00:29:29]} {[%emt 00:00:27]} 37. Kf3
{[%clk 00:27:32]} {[%emt 00:01:19]} Qc6+ {[%clk 00:28:55]} {[%emt 00:01:04]} 38.
Kf2 {[%clk 00:25:58]} {[%emt 00:02:04]} Qxh1 {[%clk 00:29:12]} {[%emt
00:00:13]} 39. Qxc5 {[%clk 00:25:46]} {[%emt 00:00:43]} Rxf4+ {[%clk 00:29:24]}
{[%emt 00:00:17]} 40. Ke2 {[%clk 00:25:18]} {[%emt 00:00:58]} Qf1+ {[%clk
00:28:45]} {[%emt 00:01:09]} 41. Kd2 {[%clk 00:25:15]} {[%emt 00:00:34]} Rf2+
{[%clk 00:28:26]} {[%emt 00:00:48]} 42. Qxf2 {[%clk 00:25:03]} {[%emt
00:00:42]} Qxf2+ {[%clk 00:28:47]} {[%emt 00:00:09]} 43. Kd3 {[%clk 00:25:28]}
{[%emt 00:00:06]} g5 {[%clk 00:29:02]} {[%emt 00:00:14]} 44. c4 {[%clk
00:25:17]} {[%emt 00:00:41]} g4 {[%clk 00:28:56]} {[%emt 00:00:36]} 45. Kc3
{[%clk 00:25:16]} {[%emt 00:00:32]} g3 {[%clk 00:29:15]} {[%emt 00:00:10]} 46.
c5 {[%clk 00:25:16]} {[%emt 00:00:30]} g2 {[%clk 00:29:31]} {[%emt 00:00:14]}
47. c6 {[%clk 00:25:28]} {[%emt 00:00:19]} g1=Q {[%clk 00:29:54]} {[%emt
00:00:05]} 48. c7 {[%clk 00:25:40]} {[%emt 00:00:20]} Qd4+ {[%clk 00:29:47]}
{[%emt 00:00:36]} 49. Kb3 {[%clk 00:24:44]} {[%emt 00:01:27]} Qge3+ {[%clk
00:29:56]} {[%emt 00:00:20]} 50. Kc2 {[%clk 00:24:57]} {[%emt 00:00:17]} Qdd2+
{[%clk 00:30:11]} {[%emt 00:00:15]} 51. Kb1 {[%clk 00:24:42]} {[%emt 00:00:45]}
Qee1# {[%clk 00:30:39]} {[%emt 00:00:03]} 0-1

[Event "NJSK 2022 Meisjes C"]
[Site "Almelo, Netherlands"]
[Date "2022.05.05"]
[Round "5.7"]
[White "Verbunt, Lisa"]
[Black "Kulikova, Polina"]
[Result "0-1"]
[TimeControl "90min/40moves + 30min + 30sec/move"]
[WhiteElo "807"]
[BlackElo "1117"]

1. e4 {[%clk 01:30:57]} {[%emt 00:00:02]} c6 {[%clk 01:30:59]} {[%emt
00:00:03]} 2. d4 {[%clk 01:31:16]} {[%emt 00:00:10]} d5 {[%clk 01:31:22]}
{[%emt 00:00:07]} 3. e5 {[%clk 01:31:31]} {[%emt 00:00:15]} c5 {[%clk
01:30:35]} {[%emt 00:01:17]} 4. c3 {[%clk 01:31:32]} {[%emt 00:00:29]} Nc6
{[%clk 01:30:53]} {[%emt 00:00:13]} 5. Nf3 {[%clk 01:31:52]} {[%emt 00:00:10]}
Bg4 {[%clk 01:31:20]} {[%emt 00:00:03]} 6. Be2 {[%clk 01:31:26]} {[%emt
00:00:55]} e6 {[%clk 01:31:45]} {[%emt 00:00:05]} 7. O-O {[%clk 01:31:26]}
{[%emt 00:00:30]} Nge7 {[%clk 01:32:00]} {[%emt 00:00:16]} 8. Be3 {[%clk
01:31:12]} {[%emt 00:00:44]} Nf5 {[%clk 01:32:26]} {[%emt 00:00:04]} 9. h3
{[%clk 01:30:35]} {[%emt 00:01:06]} Bxf3 {[%clk 01:32:39]} {[%emt 00:00:16]} 10.
Bxf3 {[%clk 01:30:53]} {[%emt 00:00:12]} cxd4 {[%clk 01:32:05]} {[%emt
00:01:05]} 11. cxd4 {[%clk 01:31:08]} {[%emt 00:00:15]} Qb6 {[%clk 01:32:12]}
{[%emt 00:00:22]} 12. Qa4 {[%clk 01:30:09]} {[%emt 00:01:30]} Qxb2 {[%clk
01:30:20]} {[%emt 00:02:22]} 13. Nd2 {[%clk 01:29:10]} {[%emt 00:01:30]} Nxe3
{[%clk 01:30:13]} {[%emt 00:00:35]} 14. fxe3 {[%clk 01:28:31]} {[%emt
00:01:10]} Qxd2 {[%clk 01:30:30]} {[%emt 00:00:13]} 15. Rfe1 {[%clk 01:26:47]}
{[%emt 00:02:14]} Qa5 {[%clk 01:29:48]} {[%emt 00:01:09]} 16. Qb3 {[%clk
01:26:27]} {[%emt 00:00:53]} Rb8 {[%clk 01:27:33]} {[%emt 00:02:45]} 17. Rec1
{[%clk 01:23:31]} {[%emt 00:03:25]} Qa3 {[%clk 01:26:51]} {[%emt 00:01:13]} 18.
Be2 {[%clk 01:22:15]} {[%emt 00:01:46]} Qxb3 {[%clk 01:27:08]} {[%emt
00:00:13]} 19. axb3 {[%clk 01:22:36]} {[%emt 00:00:10]} a6 {[%clk 01:27:18]}
{[%emt 00:00:20]} 20. Ra4 {[%clk 01:21:51]} {[%emt 00:01:15]} Kd7 {[%clk
01:27:17]} {[%emt 00:00:31]} 21. Rb1 {[%clk 01:21:33]} {[%emt 00:00:47]} Bb4
{[%clk 01:25:53]} {[%emt 00:01:47]} 22. Bf3 {[%clk 01:18:28]} {[%emt 00:03:42]}
Be7 {[%clk 01:23:20]} {[%emt 00:03:02]} 23. e4 {[%clk 01:18:23]} {[%emt
00:00:35]} dxe4 {[%clk 01:23:13]} {[%emt 00:00:38]} 24. Bxe4 {[%clk 01:18:38]}
{[%emt 00:00:16]} g6 {[%clk 01:21:53]} {[%emt 00:01:49]} 25. Rc1 {[%clk
01:17:56]} {[%emt 00:01:12]} Rhc8 {[%clk 01:22:02]} {[%emt 00:00:22]} 26. d5
{[%clk 01:16:46]} {[%emt 00:01:40]} exd5 {[%clk 01:19:44]} {[%emt 00:02:47]} 27.
Bxd5 {[%clk 01:16:47]} {[%emt 00:00:29]} Nxe5 {[%clk 01:18:14]} {[%emt
00:02:00]} 28. Rd1 {[%clk 01:16:16]} {[%emt 00:01:01]} Ke8 {[%clk 01:15:06]}
{[%emt 00:03:38]} 29. Re4 {[%clk 01:15:28]} {[%emt 00:01:18]} Nc6 {[%clk
01:09:52]} {[%emt 00:05:43]} 30. Rf1 {[%clk 01:13:26]} {[%emt 00:02:32]} f5
{[%clk 01:09:15]} {[%emt 00:01:08]} 31. Re3 {[%clk 01:11:45]} {[%emt 00:02:11]}
Kf8 {[%clk 01:07:47]} {[%emt 00:01:58]} 32. Rfe1 {[%clk 01:09:57]} {[%emt
00:02:18]} Bc5 {[%clk 01:07:37]} {[%emt 00:00:40]} 0-1

[Event "NJSK 2022 Meisjes C"]
[Site "Almelo, Netherlands"]
[Date "2022.05.05"]
[Round "5.8"]
[White "De Bruijne, Marlies"]
[Black "Hagen, Carlijn"]
[Result "1-0"]
[TimeControl "90min/40moves + 30min + 30sec/move"]
[WhiteElo "858"]
[BlackElo "783"]

1. e4 {[%clk 01:30:59]} {[%emt 00:00:01]} e5 {[%clk 01:30:53]} {[%emt
00:00:07]} 2. Nf3 {[%clk 01:31:21]} {[%emt 00:00:08]} Nc6 {[%clk 01:31:12]}
{[%emt 00:00:12]} 3. Bc4 {[%clk 01:31:16]} {[%emt 00:00:34]} Nf6 {[%clk
01:30:29]} {[%emt 00:01:13]} 4. d3 {[%clk 01:31:28]} {[%emt 00:00:17]} Be7
{[%clk 01:30:31]} {[%emt 00:00:28]} 5. O-O {[%clk 01:31:14]} {[%emt 00:00:44]}
a6 {[%clk 01:29:58]} {[%emt 00:01:04]} 6. Nc3 {[%clk 01:29:52]} {[%emt
00:01:53]} d6 {[%clk 01:29:27]} {[%emt 00:01:00]} 7. h3 {[%clk 01:28:55]}
{[%emt 00:01:26]} h6 {[%clk 01:27:36]} {[%emt 00:02:22]} 8. Nd5 {[%clk
01:26:29]} {[%emt 00:02:56]} Nxd5 {[%clk 01:23:46]} {[%emt 00:04:20]} 9. Bxd5
{[%clk 01:26:27]} {[%emt 00:00:31]} Bd7 {[%clk 01:23:26]} {[%emt 00:00:50]} 10.
Bd2 {[%clk 01:23:51]} {[%emt 00:03:06]} Rb8 {[%clk 01:22:18]} {[%emt 00:01:38]}
11. Bxc6 {[%clk 01:23:14]} {[%emt 00:01:08]} Bxc6 {[%clk 01:22:14]} {[%emt
00:00:33]} 12. b3 {[%clk 01:23:06]} {[%emt 00:00:39]} Bf6 {[%clk 01:22:08]}
{[%emt 00:00:36]} 13. Rb1 {[%clk 01:22:29]} {[%emt 00:01:07]} O-O {[%clk
01:21:46]} {[%emt 00:00:51]} 14. Be3 {[%clk 01:21:17]} {[%emt 00:01:43]} b6
{[%clk 01:21:05]} {[%emt 00:01:11]} 15. c3 {[%clk 01:20:10]} {[%emt 00:01:37]}
d5 {[%clk 01:20:59]} {[%emt 00:00:36]} 16. Qc2 {[%clk 01:17:48]} {[%emt
00:02:52]} Bb5 {[%clk 01:20:02]} {[%emt 00:01:27]} 17. exd5 {[%clk 01:13:59]}
{[%emt 00:04:19]} c6 {[%clk 01:17:47]} {[%emt 00:02:46]} 18. c4 {[%clk
01:12:19]} {[%emt 00:02:09]} Bxc4 {[%clk 01:17:39]} {[%emt 00:00:38]} 19. Qxc4
{[%clk 01:11:51]} {[%emt 00:00:58]} cxd5 {[%clk 01:17:11]} {[%emt 00:00:58]} 20.
Qxa6 {[%clk 01:09:32]} {[%emt 00:02:49]} d4 {[%clk 01:17:09]} {[%emt 00:00:31]}
21. Bd2 {[%clk 01:09:16]} {[%emt 00:00:46]} Ra8 {[%clk 01:17:00]} {[%emt
00:00:40]} 22. Qb5 {[%clk 01:08:29]} {[%emt 00:01:16]} Rxa2 {[%clk 01:16:59]}
{[%emt 00:00:32]} 23. Rfc1 {[%clk 01:03:43]} {[%emt 00:05:15]} Qb8 {[%clk
01:14:33]} {[%emt 00:02:57]} 24. Ra1 {[%clk 01:02:01]} {[%emt 00:02:12]} Rb2
{[%clk 01:13:30]} {[%emt 00:01:33]} 25. Ra6 {[%clk 01:01:39]} {[%emt 00:00:51]}
Bd8 {[%clk 01:13:20]} {[%emt 00:00:40]} 26. Rd1 {[%clk 00:59:33]} {[%emt
00:02:36]} Bc7 {[%clk 01:12:09]} {[%emt 00:01:42]} 27. Qc6 {[%clk 00:55:17]}
{[%emt 00:04:46]} Rxb3 {[%clk 01:07:02]} {[%emt 00:05:37]} 28. Rda1 {[%clk
00:52:37]} {[%emt 00:03:09]} Qd8 {[%clk 01:04:37]} {[%emt 00:02:55]} 29. Ra8
{[%clk 00:52:07]} {[%emt 00:01:00]} Bb8 {[%clk 01:03:24]} {[%emt 00:01:43]} 30.
Nxe5 {[%clk 00:52:00]} {[%emt 00:00:37]} Qe7 {[%clk 01:01:36]} {[%emt
00:02:18]} 31. Nd7 {[%clk 00:50:30]} {[%emt 00:02:00]} Rd8 {[%clk 01:00:38]}
{[%emt 00:01:28]} 32. Rxb8 {[%clk 00:49:51]} {[%emt 00:01:10]} Rxb8 {[%clk
01:00:26]} {[%emt 00:00:42]} 33. Nxb8 {[%clk 00:49:51]} {[%emt 00:00:29]} Rxd3
{[%clk 01:00:23]} {[%emt 00:00:33]} 34. Qc2 {[%clk 00:48:21]} {[%emt 00:02:00]}
Qe4 {[%clk 00:59:47]} {[%emt 00:01:06]} 35. Ra3 {[%clk 00:47:27]} {[%emt
00:01:24]} Qb7 {[%clk 00:59:30]} {[%emt 00:00:47]} 36. Rxd3 {[%clk 00:47:20]}
{[%emt 00:00:38]} Qxb8 {[%clk 00:59:52]} {[%emt 00:00:07]} 37. Rxd4 {[%clk
00:47:43]} {[%emt 00:00:08]} Qe5 {[%clk 00:59:59]} {[%emt 00:00:22]} 38. Rd8+
{[%clk 00:47:52]} {[%emt 00:00:22]} Qe8 {[%clk 01:00:15]} {[%emt 00:00:13]} 39.
Rxe8# {[%clk 00:47:42]} {[%emt 00:00:09]} 1-0

[Event "NJSK 2022 Meisjes C"]
[Site "Almelo, Netherlands"]
[Date "2022.05.05"]
[Round "5.9"]
[White "Koorevaar, Sarah-Joy"]
[Black "Jonkman, Sophia"]
[Result "1-0"]
[TimeControl "90min/40moves + 30min + 30sec/move"]
[WhiteElo "849"]
[BlackElo "1417"]

1. d4 {[%clk 01:30:59]} Nf6 {[%clk 01:30:55]} {[%emt 00:00:06]} 2. c4 {[%clk
01:31:23]} {[%emt 00:00:05]} g6 {[%clk 01:31:20]} {[%emt 00:00:05]} 3. Nc3
{[%clk 01:31:26]} {[%emt 00:00:27]} Bg7 {[%clk 01:31:45]} {[%emt 00:00:05]} 4.
Bf4 {[%clk 01:31:38]} {[%emt 00:00:18]} d6 {[%clk 01:31:21]} {[%emt 00:00:55]}
5. g3 {[%clk 01:30:02]} {[%emt 00:02:05]} Nh5 {[%clk 01:30:50]} {[%emt
00:01:01]} 6. Be3 {[%clk 01:28:24]} {[%emt 00:02:08]} O-O {[%clk 01:29:27]}
{[%emt 00:01:53]} 7. Bg2 {[%clk 01:28:31]} {[%emt 00:00:22]} c6 {[%clk
01:22:40]} {[%emt 00:07:19]} 8. Nf3 {[%clk 01:27:49]} {[%emt 00:01:09]} e5
{[%clk 01:09:34]} {[%emt 00:13:39]} 9. O-O {[%clk 01:26:37]} {[%emt 00:01:41]}
Qc7 {[%clk 01:02:10]} {[%emt 00:07:55]} 10. Rc1 {[%clk 01:20:33]} {[%emt
00:06:32]} h6 {[%clk 00:57:11]} {[%emt 00:05:30]} 11. Qd2 {[%clk 01:17:41]}
{[%emt 00:03:21]} Kh7 {[%clk 00:57:25]} {[%emt 00:00:17]} 12. Nh4 {[%clk
01:12:02]} {[%emt 00:06:08]} f5 {[%clk 00:46:38]} {[%emt 00:11:18]} 13. Qc2
{[%clk 01:05:09]} {[%emt 00:07:22]} Qf7 {[%clk 00:35:26]} {[%emt 00:11:43]} 14.
d5 {[%clk 00:54:47]} {[%emt 00:10:52]} g5 {[%clk 00:30:12]} {[%emt 00:05:44]}
15. dxc6 {[%clk 00:50:47]} {[%emt 00:04:30]} Nxc6 {[%clk 00:23:09]} {[%emt
00:07:34]} 16. Bd5 {[%clk 00:48:04]} {[%emt 00:03:12]} Qf6 {[%clk 00:16:49]}
{[%emt 00:06:51]} 17. Ng2 {[%clk 00:44:12]} {[%emt 00:04:18]} Nb4 {[%clk
00:16:16]} {[%emt 00:01:07]} 18. Qb1 {[%clk 00:41:59]} {[%emt 00:02:42]} Nxd5
{[%clk 00:13:52]} {[%emt 00:02:55]} 19. cxd5 {[%clk 00:41:54]} {[%emt
00:00:34]} Qg6 {[%clk 00:12:05]} {[%emt 00:02:18]} 20. Nb5 {[%clk 00:41:02]}
{[%emt 00:01:21]} a6 {[%clk 00:11:42]} {[%emt 00:00:53]} 21. Nc7 {[%clk
00:40:55]} {[%emt 00:00:38]} Bd7 {[%clk 00:09:54]} {[%emt 00:02:18]} 22. Nxa8
{[%clk 00:40:42]} {[%emt 00:00:42]} Rxa8 {[%clk 00:10:21]} {[%emt 00:00:04]} 23.
Rc7 {[%clk 00:37:21]} {[%emt 00:03:50]} Rd8 {[%clk 00:09:03]} {[%emt 00:01:49]}
24. Bb6 {[%clk 00:35:41]} {[%emt 00:02:07]} Qf7 {[%clk 00:04:43]} {[%emt
00:04:52]} 25. Rxd7 {[%clk 00:32:54]} {[%emt 00:03:16]} Rxd7 {[%clk 00:05:05]}
{[%emt 00:00:09]} 26. g4 {[%clk 00:31:53]} {[%emt 00:01:31]} Nf4 {[%clk
00:03:35]} {[%emt 00:02:00]} 27. gxf5 {[%clk 00:30:55]} {[%emt 00:01:27]} Nxe2+
{[%clk 00:02:05]} {[%emt 00:02:02]} 28. Kh1 {[%clk 00:31:03]} {[%emt 00:00:22]}
Bf6 {[%clk 00:01:42]} {[%emt 00:00:53]} 29. Qe4 {[%clk 00:26:02]} {[%emt
00:05:29]} Nf4 {[%clk 00:01:09]} {[%emt 00:01:04]} 30. Nxf4 {[%clk 00:26:17]}
{[%emt 00:00:15]} exf4 {[%clk 00:01:36]} {[%emt 00:00:04]} 31. Qe6 {[%clk
00:26:15]} {[%emt 00:00:28]} Re7 {[%clk 00:01:21]} {[%emt 00:00:49]} 32. Qxd6
{[%clk 00:24:46]} {[%emt 00:01:58]} Re2 {[%clk 00:01:00]} {[%emt 00:00:51]} 33.
Rd1 {[%clk 00:23:50]} {[%emt 00:01:25]} Rxb2 {[%clk 00:00:59]} {[%emt
00:00:32]} 34. Qc7 {[%clk 00:23:34]} {[%emt 00:00:46]} Qxc7 {[%clk 00:00:49]}
{[%emt 00:00:40]} 35. Bxc7 {[%clk 00:23:54]} {[%emt 00:00:11]} Rxf2 {[%clk
00:00:46]} {[%emt 00:00:32]} 36. a3 {[%clk 00:22:56]} {[%emt 00:01:28]} f3
{[%clk 00:01:06]} {[%emt 00:00:11]} 37. Kg1 {[%clk 00:20:32]} {[%emt 00:02:53]}
Rg2+ {[%clk 00:01:14]} {[%emt 00:00:23]} 38. Kf1 {[%clk 00:20:48]} {[%emt
00:00:12]} g4 {[%clk 00:01:09]} {[%emt 00:00:36]} 39. d6 {[%clk 00:20:54]}
{[%emt 00:00:25]} Be5 {[%clk 00:01:21]} {[%emt 00:00:18]} 40. Bb6 {[%clk
00:18:14]} {[%emt 00:03:09]} Rxh2 {[%clk 00:01:09]} {[%emt 00:00:42]} 41. Rd5
{[%clk 00:16:54]} {[%emt 00:01:50]} Rh1+ {[%clk 00:00:37]} {[%emt 00:01:03]} 42.
Kf2 {[%clk 00:16:36]} {[%emt 00:00:48]} Rh2+ {[%clk 00:00:40]} {[%emt
00:00:26]} 43. Kg1 {[%clk 00:14:41]} {[%emt 00:02:25]} Rg2+ {[%clk 00:01:01]}
{[%emt 00:00:09]} 44. Kf1 {[%clk 00:14:52]} {[%emt 00:00:18]} Rb2 {[%clk
00:00:40]} {[%emt 00:00:53]} 45. d7 {[%clk 00:13:37]} {[%emt 00:01:44]} g3
{[%clk 00:00:39]} {[%emt 00:00:31]} 46. d8=Q {[%clk 00:42:58]} {[%emt
00:01:10]} g2+ {[%clk 00:27:08]} {[%emt 00:04:11]} 47. Kg1 {[%clk 00:42:41]}
{[%emt 00:00:47]} Rb1+ {[%clk 00:17:37]} {[%emt 00:10:01]} 48. Rd1 {[%clk
00:43:04]} {[%emt 00:00:07]} Rxd1+ {[%clk 00:18:02]} {[%emt 00:00:05]} 49. Qxd1
{[%clk 00:43:24]} {[%emt 00:00:09]} Kg7 {[%clk 00:18:16]} {[%emt 00:00:17]} 50.
Qxf3 {[%clk 00:43:45]} {[%emt 00:00:09]} Kf6 {[%clk 00:18:27]} {[%emt
00:00:19]} 51. Kxg2 {[%clk 00:43:52]} {[%emt 00:00:23]} Kg5 {[%clk 00:18:28]}
{[%emt 00:00:30]} 52. Bd8+ {[%clk 00:43:58]} {[%emt 00:00:22]} Bf6 {[%clk
00:18:22]} {[%emt 00:00:37]} 53. Bxf6+ {[%clk 00:44:22]} {[%emt 00:00:07]} Kxf6
{[%clk 00:18:49]} {[%emt 00:00:02]} 54. Qxb7 {[%clk 00:44:36]} {[%emt
00:00:15]} Kxf5 {[%clk 00:19:01]} {[%emt 00:00:20]} 55. Qxa6 {[%clk 00:44:54]}
{[%emt 00:00:11]} h5 {[%emt 00:01:02]} 56. Qb7 {[%clk 00:44:43]} Kg4 {[%clk
00:19:25]} {[%emt 00:00:15]} 57. Qf3+ {[%clk 00:44:12]} {[%emt 00:00:59]} Kg5
{[%clk 00:19:44]} {[%emt 00:00:13]} 58. a4 {[%clk 00:44:22]} {[%emt 00:00:20]}
h4 {[%clk 00:19:59]} {[%emt 00:00:15]} 59. a5 {[%clk 00:43:59]} {[%emt
00:00:53]} 1-0

[Event "NJSK 2022 Meisjes C"]
[Site "Almelo, Netherlands"]
[Date "2022.05.06"]
[Round "6.1"]
[White "Damen, Josephine"]
[Black "Maris, Lauri"]
[Result "1-0"]
[TimeControl "90min/40moves + 30min + 30sec/move"]
[WhiteElo "1600"]
[BlackElo "1619"]

1. e4 {[%clk 01:30:58]} {[%emt 00:00:02]} e5 {[%clk 01:30:56]} {[%emt
00:00:05]} 2. Nf3 {[%clk 01:31:24]} {[%emt 00:00:05]} Nc6 {[%clk 01:31:19]}
{[%emt 00:00:06]} 3. Bc4 {[%clk 01:31:49]} {[%emt 00:00:08]} Bc5 {[%clk
01:31:45]} {[%emt 00:00:02]} 4. c3 {[%clk 01:32:14]} {[%emt 00:00:04]} Nf6
{[%clk 01:32:09]} {[%emt 00:00:05]} 5. d4 {[%clk 01:32:39]} {[%emt 00:00:07]}
exd4 {[%clk 01:32:31]} {[%emt 00:00:07]} 6. cxd4 {[%clk 01:33:03]} {[%emt
00:00:06]} Bb4+ {[%clk 01:32:54]} {[%emt 00:00:06]} 7. Nc3 {[%clk 01:33:26]}
{[%emt 00:00:06]} Nxe4 {[%clk 01:33:09]} {[%emt 00:00:16]} 8. O-O {[%clk
01:33:46]} {[%emt 00:00:10]} Bxc3 {[%clk 01:33:27]} {[%emt 00:00:12]} 9. d5
{[%clk 01:34:10]} {[%emt 00:00:06]} Bf6 {[%clk 01:33:32]} {[%emt 00:00:27]} 10.
Re1 {[%clk 01:34:21]} {[%emt 00:00:17]} Ne7 {[%clk 01:33:49]} {[%emt 00:00:15]}
11. Rxe4 {[%clk 01:34:44]} {[%emt 00:00:06]} d6 {[%clk 01:34:05]} {[%emt
00:00:14]} 12. Bg5 {[%clk 01:35:06]} {[%emt 00:00:08]} Bxg5 {[%clk 01:34:15]}
{[%emt 00:00:19]} 13. Nxg5 {[%clk 01:35:30]} {[%emt 00:00:07]} h6 {[%clk
01:34:33]} {[%emt 00:00:12]} 14. Qe2 {[%clk 01:35:51]} {[%emt 00:00:09]} hxg5
{[%clk 01:24:08]} {[%emt 00:10:55]} 15. Re1 {[%clk 01:35:53]} {[%emt 00:00:28]}
O-O {[%clk 01:22:56]} {[%emt 00:01:42]} 16. Rxe7 {[%clk 01:34:42]} {[%emt
00:01:40]} g6 {[%clk 01:17:03]} {[%emt 00:06:23]} 17. Bd3 {[%clk 01:25:43]}
{[%emt 00:09:29]} Bd7 {[%clk 01:10:28]} {[%emt 00:07:05]} 18. Qf3 {[%clk
01:06:09]} {[%emt 00:20:04]} Kg7 {[%clk 00:59:57]} {[%emt 00:11:02]} 19. Qe4
{[%clk 00:45:04]} {[%emt 00:21:35]} Re8 {[%clk 00:55:59]} {[%emt 00:04:27]} 20.
Qxg6+ {[%clk 00:45:08]} {[%emt 00:00:27]} Kf8 {[%clk 00:55:59]} {[%emt
00:00:30]} 21. Rxf7# {[%clk 00:45:24]} {[%emt 00:00:14]} 1-0